fUSD/lending_fUSD_20250515
["ID","MTS","AMOUNT","RATE_DAILY","PERIOD"]
[361187090,1747327896590,-400.0,0.00014286,2]
[361187091,1747327896599,-400.0,0.00014286,2]
[361187092,1747327896609,-1311.61,0.00014286,2]
[361187093,1747327896618,-400.0,0.00014286,2]
[361187094,1747327896627,-468.28,0.00014286,2]
[361187095,1747327896636,-400.0,0.00014286,2]
[361187096,1747327896646,-400.0,0.00014286,2]
[361187097,1747327896655,-803.08,0.00014286,2]
[361187098,1747327896665,-492.86,0.00014286,2]
[361187099,1747327896674,-400.0,0.00014286,2]
[361187100,1747327896684,-400.0,0.00014286,2]
[361187101,1747327896694,-400.0,0.00014286,2]
[361187102,1747327896703,-1872.23,0.00014286,2]
[361187103,1747327896713,-400.0,0.00014286,2]
[361187104,1747327896723,-400.0,0.00014286,2]
[361187105,1747327896733,-400.0,0.00014286,2]
[361187106,1747327896743,-400.0,0.00014286,2]
[361187107,1747327896753,-400.0,0.00014286,2]
[361187108,1747327896762,-184.48,0.00014286,2]
[361187109,1747327896773,-400.0,0.00014286,2]
[361187110,1747327896782,-934.06,0.00014286,2]
[361187111,1747327896791,-400.0,0.00014286,2]
[361187112,1747327896801,-400.0,0.00014286,2]
[361187113,1747327896810,-1231.42,0.00014286,2]
[361187114,1747327896820,-400.0,0.00014286,2]
[361187115,1747327896829,-400.0,0.00014286,2]
[361187116,1747327896838,-400.0,0.00014286,2]
[361187117,1747327896847,-1091.29,0.00014286,2]
[361187118,1747327896857,-853.44,0.00014286,2]
[361187119,1747327896867,-400.0,0.00014286,2]
[361187120,1747327896877,-400.0,0.00014286,2]
[361187121,1747327896887,-400.0,0.00014286,2]
[361187122,1747327896896,-362.8,0.00014286,2]
[361187123,1747327896906,-400.0,0.00014286,2]
[361187124,1747327896915,-424.3,0.00014286,2]
[361187125,1747327896925,-548.19,0.00014286,2]
[361187126,1747327896934,-400.0,0.00014286,2]
[361187127,1747327896943,-400.0,0.00014286,2]
[361187128,1747327896952,-400.0,0.00014286,2]
[361187129,1747327896961,-13778.97,0.00014286,2]
[361187130,1747327896971,-400.0,0.00014286,2]
[361187131,1747327896982,-543.47,0.00014286,2]
[361187132,1747327896992,-299.5,0.00014286,2]
[361187133,1747327897002,-400.0,0.00014286,2]
[361187134,1747327897012,-400.0,0.00014286,2]
[361187135,1747327897021,-400.0,0.00014286,2]
[361187136,1747327897031,-573.62,0.00014286,2]
[361187137,1747327897041,-512.73,0.00014286,2]
[361187138,1747327897054,-416.13,0.00014286,2]
[361187139,1747327897064,-605.73,0.00014286,2]
[361187140,1747327897074,-428.31,0.00014286,2]
[361187141,1747327897085,-152.07530391,0.00014286,2]
[361187142,1747327897095,-400.0,0.00014286,2]
[361187143,1747327897105,-637.82,0.00014286,2]
[361187144,1747327897115,-848.22,0.00014286,2]
[361187145,1747327897125,-400.0,0.00014286,2]
[361187146,1747327897135,-400.0,0.00014286,2]
[361187147,1747327897144,-400.0,0.00014286,2]
[361187148,1747327897154,-274.54,0.00014286,2]
[361187149,1747327897164,-675.77,0.00014286,2]
[361187150,1747327897173,-400.0,0.00014286,2]
[361187151,1747327897183,-2618.985569,0.00014286,2]
[361187152,1747327897192,-598.44,0.00014286,2]
[361187153,1747327897201,-213.41,0.00014287,2]
[361187154,1747327897211,-400.0,0.00014287,2]
[361187155,1747327897220,-400.0,0.00014287,2]
[361187156,1747327897232,-170.8,0.00014287,2]
[361187157,1747327897242,-400.0,0.00014287,2]
[361187158,1747327897252,-400.0,0.00014287,2]
[361187159,1747327897262,-400.0,0.00014287,2]
[361187160,1747327897272,-690.78711365,0.00014289,2]
[361187161,1747327897281,-269.8504105,0.0001429,7]
[361187162,1747327897290,-200.0,0.00014422,2]
[361187163,1747327897299,-151.0,0.00014422,2]
[361187164,1747327897309,-155.0,0.00014422,2]
[361187165,1747327897318,-151.0,0.00014422,2]
[361187166,1747327897330,-207.4,0.00014422,2]
[361187167,1747327897339,-668.65185757,0.00014422,2]
[361187168,1747327897349,-151.0,0.00014422,2]
[361187169,1747327897359,-151.55295619,0.00014477,2]
[361187170,1747327897369,-150.0,0.00014559,2]
[361187171,1747327897379,-178.86,0.0001456,2]
[361187172,1747327897389,-400.0,0.0001456,2]
[361187173,1747327897399,-545.07790894,0.0001456,2]
[361187174,1747327897409,-400.0,0.0001456,2]
[361187175,1747327897419,-400.0,0.0001456,2]
[361187176,1747327897429,-400.0,0.0001456,2]
[361187177,1747327897439,-400.0,0.0001456,2]
[361187178,1747327897448,-1311.61,0.0001456,2]
[361187179,1747327897458,-456.12,0.0001456,2]
[361187180,1747327897467,-468.28,0.0001456,2]
[361187181,1747327897481,-400.0,0.0001456,2]
[361187182,1747327897491,-400.0,0.0001456,2]
[361187183,1747327897500,-803.08,0.0001456,2]
[361187184,1747327897510,-492.86,0.0001456,2]
[361187185,1747327897520,-400.0,0.0001456,2]
[361187186,1747327897530,-400.0,0.0001456,2]
[361187187,1747327897539,-400.0,0.0001456,2]
[361187188,1747327897549,-1872.23,0.0001456,2]
[361187189,1747327897558,-400.0,0.0001456,2]
[361187190,1747327897568,-400.0,0.0001456,2]
[361187191,1747327897578,-400.0,0.0001456,2]
[361187192,1747327897588,-400.0,0.0001456,2]
[361187193,1747327897597,-400.0,0.0001456,2]
[361187194,1747327897607,-400.0,0.0001456,2]
[361187195,1747327897617,-934.06,0.0001456,2]
[361187196,1747327897627,-400.0,0.0001456,2]
[361187197,1747327897637,-400.0,0.0001456,2]
[361187198,1747327897647,-1231.42,0.0001456,2]
[361187199,1747327897657,-398.0,0.0001456,2]
[361187200,1747327897666,-400.0,0.0001456,2]
[361187201,1747327897675,-400.0,0.0001456,2]
[361187202,1747327897686,-1091.29,0.0001456,2]
[361187203,1747327897696,-853.44,0.0001456,2]
[361187204,1747327897706,-400.0,0.0001456,2]
[361187205,1747327897715,-400.0,0.0001456,2]
[361187206,1747327897726,-400.0,0.0001456,2]
[361187207,1747327897735,-316.3,0.0001456,2]
[361187208,1747327897744,-424.3,0.0001456,2]
[361187209,1747327897754,-548.19,0.0001456,2]
[361187210,1747327897763,-400.0,0.0001456,2]
[361187211,1747327897772,-400.0,0.0001456,2]
[361187212,1747327897782,-400.0,0.0001456,2]
[361187213,1747327897791,-13778.97,0.0001456,2]
[361187214,1747327897800,-400.0,0.0001456,2]
[361187215,1747327897810,-543.47,0.0001456,2]
[361187216,1747327897819,-400.0,0.0001456,2]
[361187217,1747327897830,-400.0,0.0001456,2]
[361187218,1747327897840,-400.0,0.0001456,2]
[361187219,1747327897850,-573.62,0.0001456,2]
[361187220,1747327897859,-512.73,0.0001456,2]
[361187221,1747327897869,-416.13,0.0001456,2]
[361187222,1747327897879,-605.73,0.0001456,2]
[361187223,1747327897888,-428.31,0.0001456,2]
[361187224,1747327897899,-400.0,0.0001456,2]
[361187225,1747327897909,-637.82,0.0001456,2]
[361187226,1747327897919,-848.22,0.0001456,2]
[361187227,1747327897928,-400.0,0.0001456,2]
[361187228,1747327897938,-400.0,0.0001456,2]
[361187229,1747327897947,-400.0,0.0001456,2]
[361187230,1747327897957,-675.77,0.0001456,2]
[361187231,1747327897967,-345.7990687,0.0001456,2]
[361187232,1747327897977,-2618.985569,0.0001456,2]
[361187233,1747327897986,-598.44,0.0001456,2]
[361187234,1747327897996,-400.0,0.00014561,2]
[361187235,1747327898007,-537.72,0.00014561,2]
[361187236,1747327898017,-400.0,0.00014561,2]
[361187237,1747327898027,-288.16,0.00014561,2]
[361187238,1747327898037,-400.0,0.00014561,2]
[361187239,1747327898049,-972.50308451,0.00014698,2]
[361187240,1747327898061,-446.66962492,0.00014834,2]
[361187241,1747327898071,-400.0,0.00014834,2]
[361187242,1747327898080,-400.0,0.00014834,2]
[361187243,1747327898090,-195.42,0.00014834,2]
[361187244,1747327898100,-299.02,0.00014834,2]
[361187245,1747327898109,-1311.61,0.00014834,2]
[361187246,1747327898118,-468.28,0.00014834,2]
[361187247,1747327898130,-400.0,0.00014834,2]
[361187248,1747327898141,-400.0,0.00014834,2]
[361187249,1747327898150,-803.08,0.00014834,2]
[361187250,1747327898159,-492.86,0.00014834,2]
[361187251,1747327898169,-400.0,0.00014834,2]
[361187252,1747327898179,-400.0,0.00014834,2]
[361187253,1747327898189,-400.0,0.00014834,2]
[361187254,1747327898199,-1872.23,0.00014834,2]
[361187255,1747327898210,-400.0,0.00014834,2]
[361187256,1747327898221,-400.0,0.00014834,2]
[361187257,1747327898234,-400.0,0.00014834,2]
[361187258,1747327898245,-400.0,0.00014834,2]
[361187259,1747327898255,-400.0,0.00014834,2]
[361187260,1747327898265,-400.0,0.00014834,2]
[361187261,1747327898275,-934.06,0.00014834,2]
[361187262,1747327898284,-400.0,0.00014834,2]
[361187263,1747327898294,-400.0,0.00014834,2]
[361187264,1747327898304,-1231.42,0.00014834,2]
[361187265,1747327898314,-400.0,0.00014834,2]
[361187266,1747327898323,-400.0,0.00014834,2]
[361187267,1747327898333,-1091.29,0.00014834,2]
[361187268,1747327898343,-853.44,0.00014834,2]
[361187269,1747327898354,-400.0,0.00014834,2]
[361187270,1747327898363,-400.0,0.00014834,2]
[361187271,1747327898373,-400.0,0.00014834,2]
[361187272,1747327898383,-424.3,0.00014834,2]
[361187273,1747327898393,-548.19,0.00014834,2]
[361187274,1747327898404,-400.0,0.00014834,2]
[361187275,1747327898414,-400.0,0.00014834,2]
[361187276,1747327898423,-400.0,0.00014834,2]
[361187277,1747327898433,-13778.97,0.00014834,2]
[361187278,1747327898444,-400.0,0.00014834,2]
[361187279,1747327898455,-543.47,0.00014834,2]
[361187280,1747327898465,-254.40944486,0.00014834,2]
[361187281,1747327898477,-400.0,0.00014834,2]
[361187282,1747327898486,-400.0,0.00014834,2]
[361187283,1747327898496,-573.62,0.00014834,2]
[361187284,1747327898505,-512.73,0.00014834,2]
[361187285,1747327898514,-416.13,0.00014834,2]
[361187286,1747327898524,-605.73,0.00014834,2]
[361187287,1747327898533,-428.31,0.00014834,2]
[361187288,1747327898543,-400.0,0.00014834,2]
[361187289,1747327898553,-637.82,0.00014834,2]
[361187290,1747327898564,-848.22,0.00014834,2]
[361187291,1747327898574,-400.0,0.00014834,2]
[361187292,1747327898585,-400.0,0.00014834,2]
[361187293,1747327898595,-400.0,0.00014834,2]
[361187294,1747327898605,-675.77,0.00014834,2]
[361187295,1747327898614,-2618.985569,0.00014834,2]
[361187296,1747327898624,-598.44,0.00014834,2]
[361187297,1747327898634,-428.37986858,0.00014835,2]
[361187298,1747327898644,-302.16,0.00014835,2]
[361187299,1747327898654,-400.0,0.00014835,2]
[361187300,1747327898664,-207.4,0.0001497,2]
[361187301,1747327898674,-693.3919763,0.0001497,2]
[361187302,1747327898683,-635.13,0.00015068,2]
[361187303,1747327898693,-300.0,0.00015068,2]
[361187304,1747327898703,-6071.69711869,0.00015107,2]
[361187305,1747327898712,-400.0,0.00015108,2]
[361187306,1747327898722,-400.0,0.00015108,2]
[361187307,1747327898732,-1311.61,0.00015108,2]
[361187308,1747327898742,-468.28,0.00015108,2]
[361187309,1747327898752,-524.92,0.00015108,2]
[361187310,1747327898761,-400.0,0.00015108,2]
[361187311,1747327898771,-803.08,0.00015108,2]
[361187312,1747327898781,-492.86,0.00015108,2]
[361187313,1747327898791,-400.0,0.00015108,2]
[361187314,1747327898800,-400.0,0.00015108,2]
[361187315,1747327898810,-501.62,0.00015108,2]
[361187316,1747327898820,-1872.23,0.00015108,2]
[361187317,1747327898829,-400.0,0.00015108,2]
[361187318,1747327898838,-400.0,0.00015108,2]
[361187319,1747327898848,-400.0,0.00015108,2]
[361187320,1747327898857,-400.0,0.00015108,2]
[361187321,1747327898867,-400.0,0.00015108,2]
[361187322,1747327898876,-400.0,0.00015108,2]
[361187323,1747327898886,-934.06,0.00015108,2]
[361187324,1747327898895,-400.0,0.00015108,2]
[361187325,1747327898905,-332.55589505,0.00015108,2]
[361187326,1747327898914,-1231.42,0.00015108,2]
[361187327,1747327898923,-400.0,0.00015108,2]
[361187328,1747327898932,-400.0,0.00015108,2]
[361187329,1747327898942,-1091.29,0.00015108,2]
[361187330,1747327898951,-853.44,0.00015108,2]
[361187331,1747327898961,-433.64,0.00015108,2]
[361187332,1747327898971,-400.0,0.00015108,2]
[361187333,1747327898982,-400.0,0.00015108,2]
[361187334,1747327898991,-424.3,0.00015108,2]
[361187335,1747327899001,-548.19,0.00015108,2]
[361187336,1747327899011,-400.0,0.00015108,2]
[361187337,1747327899021,-384.3,0.00015108,2]
[361187338,1747327899030,-153.05,0.00015108,2]
[361187339,1747327899040,-13778.97,0.00015108,2]
[361187340,1747327899053,-400.0,0.00015108,2]
[361187341,1747327899062,-543.47,0.00015108,2]
[361187342,1747327899071,-400.0,0.00015108,2]
[361187343,1747327899082,-400.0,0.00015108,2]
[361187344,1747327899091,-573.62,0.00015108,2]
[361187345,1747327899100,-512.73,0.00015108,2]
[361187346,1747327899110,-416.13,0.00015108,2]
[361187347,1747327899119,-605.73,0.00015108,2]
[361187348,1747327899131,-428.31,0.00015108,2]
[361187349,1747327899142,-284.19,0.00015108,2]
[361187350,1747327899151,-637.82,0.00015108,2]
[361187351,1747327899160,-848.22,0.00015108,2]
[361187352,1747327899169,-400.0,0.00015108,2]
[361187353,1747327899179,-400.0,0.00015108,2]
[361187354,1747327899188,-400.0,0.00015108,2]
[361187355,1747327899198,-675.77,0.00015108,2]
[361187356,1747327899208,-2618.985569,0.00015108,2]
[361187357,1747327899217,-598.44,0.00015108,2]
[361187358,1747327899229,-400.0,0.00015109,2]
[361187359,1747327899238,-690.78711365,0.00015137,2]
[361187360,1747327899248,-865.02,0.00015219,2]
[361187361,1747327899257,-500.0,0.00015243,2]
[361187362,1747327899267,-400.0,0.00015382,2]
[361187363,1747327899276,-185.22,0.00015382,2]
[361187364,1747327899286,-1311.61,0.00015382,2]
[361187365,1747327899296,-468.28,0.00015382,2]
[361187366,1747327899306,-400.0,0.00015382,2]
[361187367,1747327899316,-803.08,0.00015382,2]
[361187368,1747327899326,-492.86,0.00015382,2]
[361187369,1747327899500,-191.36,0.00015382,2]
[361187370,1747327899516,-400.0,0.00015382,2]
[361187371,1747327899526,-1872.23,0.00015382,2]
[361187372,1747327899536,-400.0,0.00015382,2]
[361187373,1747327899546,-203.68,0.00015382,2]
[361187374,1747327899555,-400.0,0.00015382,2]
[361187375,1747327899564,-400.0,0.00015382,2]
[361187376,1747327899574,-400.0,0.00015382,2]
[361187377,1747327899583,-400.0,0.00015382,2]
[361187378,1747327899593,-934.06,0.00015382,2]
[361187379,1747327899603,-270.7314785,0.00015382,2]
[361187380,1747327899614,-1231.42,0.00015382,2]
[361187381,1747327899624,-400.0,0.00015382,2]
[361187382,1747327899633,-400.0,0.00015382,2]
[361187383,1747327899643,-1091.29,0.00015382,2]
[361187384,1747327899654,-853.44,0.00015382,2]
[361187385,1747327899664,-185.15,0.00015382,2]
[361187386,1747327899676,-400.0,0.00015382,2]
[361187387,1747327899686,-424.3,0.00015382,2]
[361187388,1747327899695,-548.19,0.00015382,2]
[361187389,1747327899705,-400.0,0.00015382,2]
[361187390,1747327899715,-13778.97,0.00015382,2]
[361187391,1747327899728,-400.0,0.00015382,2]
[361187392,1747327899740,-543.47,0.00015382,2]
[361187393,1747327899752,-400.0,0.00015382,2]
[361187394,1747327899763,-400.0,0.00015382,2]
[361187395,1747327899773,-573.62,0.00015382,2]
[361187396,1747327899785,-512.73,0.00015382,2]
[361187397,1747327899795,-416.13,0.00015382,2]
[361187398,1747327899806,-605.73,0.00015382,2]
[361187399,1747327899817,-428.31,0.00015382,2]
[361187400,1747327899828,-637.82,0.00015382,2]
[361187401,1747327899839,-848.22,0.00015382,2]
[361187402,1747327899848,-400.0,0.00015382,2]
[361187403,1747327899859,-400.0,0.00015382,2]
[361187404,1747327899869,-400.0,0.00015382,2]
[361187405,1747327899879,-675.77,0.00015382,2]
[361187406,1747327899889,-598.44,0.00015382,2]
[361187407,1747327899900,-400.0,0.00015383,2]
[361187408,1747327899910,-1395.39,0.00015432,2]
[361187409,1747327899920,-819.93,0.0001546,2]
[361187410,1747327899929,-1000.0,0.00015487,2]
[361187411,1747327899939,-215.0738,0.00015518,2]
[361187412,1747327899949,-719.04747942,0.00015518,2]
[361187413,1747327899959,-366.90041907,0.00015578,2]
[361187414,1747327899968,-2264.976,0.00015616,2]
[361187415,1747327899979,-400.0,0.00015656,2]
[361187416,1747327899989,-1311.61,0.00015656,2]
[361187417,1747327899999,-468.28,0.00015656,2]
[361187418,1747327900009,-400.0,0.00015656,2]
[361187419,1747327900019,-803.08,0.00015656,2]
[361187420,1747327900029,-492.86,0.00015656,2]
[361187421,1747327900040,-400.0,0.00015656,2]
[361187422,1747327900051,-1872.23,0.00015656,2]
[361187423,1747327900062,-400.0,0.00015656,2]
[361187424,1747327900071,-400.0,0.00015656,2]
[361187425,1747327900081,-478.93,0.00015656,2]
[361187426,1747327900091,-407.70128769,0.00015656,2]
[361187427,1747327900101,-400.0,0.00015656,2]
[361187428,1747327900110,-934.06,0.00015656,2]
[361187429,1747327900120,-336.78193485,0.00015656,2]
[361187430,1747327900132,-1231.42,0.00015656,2]
[361187431,1747327900141,-400.0,0.00015656,2]
[361187432,1747327900151,-249.08,0.00015656,2]
[361187433,1747327900161,-1091.29,0.00015656,2]
[361187434,1747327900170,-853.44,0.00015656,2]
[361187435,1747327900180,-400.0,0.00015656,2]
[361187436,1747327900189,-424.3,0.00015656,2]
[361187437,1747327900200,-548.19,0.00015656,2]
[361187438,1747327900209,-400.0,0.00015656,2]
[361187439,1747327900218,-13778.97,0.00015656,2]
[361187440,1747327900229,-400.0,0.00015656,2]
[361187441,1747327900239,-543.47,0.00015656,2]
[361187442,1747327900249,-400.0,0.00015656,2]
[361187443,1747327900259,-400.0,0.00015656,2]
[361187444,1747327900269,-573.62,0.00015656,2]
[361187445,1747327900279,-512.73,0.00015656,2]
[361187446,1747327900289,-416.13,0.00015656,2]
[361187447,1747327900298,-605.73,0.00015656,2]
[361187448,1747327900308,-428.31,0.00015656,2]
[361187449,1747327900317,-637.82,0.00015656,2]
[361187450,1747327900327,-848.22,0.00015656,2]
[361187451,1747327900337,-400.0,0.00015656,2]
[361187452,1747327900347,-400.0,0.00015656,2]
[361187453,1747327900357,-400.0,0.00015656,2]
[361187454,1747327900366,-675.77,0.00015656,2]
[361187455,1747327900376,-598.44,0.00015656,2]
[361187456,1747327900386,-400.0,0.00015657,2]
[361187457,1747327900396,-1383.16,0.00015767,2]
[361187458,1747327900406,-300.83,0.00015767,2]
[361187459,1747327900416,-229.78,0.00015767,2]
[361187460,1747327900426,-150.2,0.00015767,2]
[361187461,1747327900435,-352.99,0.00015767,2]
[361187462,1747327900445,-196.79,0.00015767,2]
[361187463,1747327900455,-300.4,0.00015767,2]
[361187464,1747327900465,-150.0,0.00015767,2]
[361187465,1747327900474,-352.99,0.00015767,2]
[361187466,1747327900484,-300.98,0.00015767,2]
[361187467,1747327900493,-1163.6,0.00015767,2]
[361187468,1747327900504,-302.0,0.00015791,2]
[361187469,1747327900513,-215.0738,0.00015791,2]
[361187470,1747327900523,-970.31512871,0.00015791,2]
[361187471,1747327900533,-457.51,0.00015815,2]
[361187472,1747327900543,-915.12,0.00015815,2]
[361187473,1747327900555,-1286.85,0.00015815,2]
[361187474,1747327900565,-804.32,0.00015815,2]
[361187475,1747327900574,-194.686,0.00015843,2]
[361187476,1747327900584,-150.0,0.0001589,2]
[361187477,1747327900593,-419.45554622,0.0001593,2]
[361187478,1747327900602,-1311.61,0.0001593,2]
[361187479,1747327900612,-468.28,0.0001593,2]
[361187480,1747327900622,-358.54,0.0001593,2]
[361187481,1747327900631,-803.08,0.0001593,2]
[361187482,1747327900641,-492.86,0.0001593,2]
[361187483,1747327900651,-400.0,0.0001593,2]
[361187484,1747327900661,-1872.23,0.0001593,2]
[361187485,1747327900671,-400.0,0.0001593,2]
[361187486,1747327900680,-400.0,0.0001593,2]
[361187487,1747327900690,-400.0,0.0001593,2]
[361187488,1747327900700,-934.06,0.0001593,2]
[361187489,1747327900710,-1231.42,0.0001593,2]
[361187490,1747327900720,-400.0,0.0001593,2]
[361187491,1747327900731,-1091.29,0.0001593,2]
[361187492,1747327900742,-853.44,0.0001593,2]
[361187493,1747327900752,-400.0,0.0001593,2]
[361187494,1747327900762,-424.3,0.0001593,2]
[361187495,1747327900772,-548.19,0.0001593,2]
[361187496,1747327900782,-400.0,0.0001593,2]
[361187497,1747327900792,-13778.97,0.0001593,2]
[361187498,1747327900802,-400.0,0.0001593,2]
[361187499,1747327900811,-543.47,0.0001593,2]
[361187500,1747327900821,-400.0,0.0001593,2]
[361187501,1747327900830,-511.38457569,0.0001593,2]
[361187502,1747327900839,-573.62,0.0001593,2]
[361187503,1747327900849,-512.73,0.0001593,2]
[361187504,1747327900858,-416.13,0.0001593,2]
[361187505,1747327900868,-605.73,0.0001593,2]
[361187506,1747327900877,-428.31,0.0001593,2]
[361187507,1747327900887,-637.82,0.0001593,2]
[361187508,1747327900897,-848.22,0.0001593,2]
[361187509,1747327900906,-400.0,0.0001593,2]
[361187510,1747327900916,-400.0,0.0001593,2]
[361187511,1747327900925,-400.0,0.0001593,2]
[361187512,1747327900935,-675.77,0.0001593,2]
[361187513,1747327900944,-598.44,0.0001593,2]
[361187514,1747327900954,-400.0,0.00015931,2]
[361187515,1747327900963,-176.15,0.00015957,2]
[361187516,1747327900972,-690.78711365,0.00015984,2]
[361187517,1747327900981,-600.0,0.00016,2]
[361187518,1747327900991,-223.0315306,0.00016066,2]
[361187519,1747327901001,-745.65223616,0.00016066,2]
[361187520,1747327901010,-614.87,0.00016106,2]
[361187521,1747327901020,-9999.99,0.00016116,2]
[361187522,1747327901029,-6071.69711869,0.00016176,2]
[361187523,1747327901038,-1311.61,0.00016204,2]
[361187524,1747327901049,-468.28,0.00016204,2]
[361187525,1747327901061,-803.08,0.00016204,2]
[361187526,1747327901070,-492.86,0.00016204,2]
[361187527,1747327901079,-400.0,0.00016204,2]
[361187528,1747327901089,-1872.23,0.00016204,2]
[361187529,1747327901099,-303.46,0.00016204,2]
[361187530,1747327901108,-400.0,0.00016204,2]
[361187531,1747327901117,-321.17,0.00016204,2]
[361187532,1747327901126,-934.06,0.00016204,2]
[361187533,1747327901137,-1231.42,0.00016204,2]
[361187534,1747327901147,-400.0,0.00016204,2]
[361187535,1747327901156,-1091.29,0.00016204,2]
[361187536,1747327901166,-853.44,0.00016204,2]
[361187537,1747327901175,-400.0,0.00016204,2]
[361187538,1747327901185,-424.3,0.00016204,2]
[361187539,1747327901194,-548.19,0.00016204,2]
[361187540,1747327901204,-354.47239976,0.00016204,2]
[361187541,1747327901213,-13778.97,0.00016204,2]
[361187542,1747327901223,-400.0,0.00016204,2]
[361187543,1747327901233,-543.47,0.00016204,2]
[361187544,1747327901243,-400.0,0.00016204,2]
[361187545,1747327901252,-573.62,0.00016204,2]
[361187546,1747327901262,-512.73,0.00016204,2]
[361187547,1747327901271,-416.13,0.00016204,2]
[361187548,1747327901280,-605.73,0.00016204,2]
[361187549,1747327901290,-428.31,0.00016204,2]
[361187550,1747327901299,-637.82,0.00016204,2]
[361187551,1747327901309,-848.22,0.00016204,2]
[361187552,1747327901319,-400.0,0.00016204,2]
[361187553,1747327901329,-400.0,0.00016204,2]
[361187554,1747327901338,-400.0,0.00016204,2]
[361187555,1747327901347,-675.77,0.00016204,2]
[361187556,1747327901357,-598.44,0.00016204,2]
[361187557,1747327901367,-400.0,0.00016205,2]
[361187558,1747327901376,-400.0,0.00016438,2]
[361187559,1747327901385,-400.0,0.00016438,2]
[361187560,1747327901443,-400.0,0.00016438,2]
[361187561,1747327901453,-400.0,0.00016438,2]
[361187562,1747327901462,-400.0,0.00016438,2]
[361187563,1747327901472,-400.0,0.00016438,2]
[361187564,1747327901483,-400.0,0.00016438,2]
[361187565,1747327901492,-400.0,0.00016438,2]
[361187566,1747327901502,-245.40735192,0.00016438,2]
[361187567,1747327901511,-635.13,0.00016438,2]
[361187568,1747327901520,-500.0,0.00016438,2]
[361187569,1747327901530,-500.0,0.00016438,2]
[361187570,1747327901540,-500.0,0.00016438,2]
[361187571,1747327901549,-500.0,0.00016438,2]
[361187572,1747327901559,-500.0,0.00016438,2]
[361187573,1747327901568,-500.0,0.00016438,2]
[361187574,1747327901578,-995.0,0.00016438,2]
[361187575,1747327901588,-300.0,0.00016438,2]
[361187576,1747327901597,-300.0,0.00016438,2]
[361187577,1747327901606,-300.0,0.00016438,2]
[361187578,1747327901615,-300.0,0.00016438,2]
[361187579,1747327901625,-300.0,0.00016438,2]
[361187580,1747327901634,-300.0,0.00016438,2]
[361187581,1747327901643,-300.0,0.00016438,2]
[361187582,1747327901653,-300.0,0.00016438,2]
[361187583,1747327901663,-300.0,0.00016438,2]
[361187584,1747327901672,-300.0,0.00016438,2]
[361187585,1747327901681,-300.0,0.00016438,2]
[361187586,1747327901690,-252.53863905,0.00016438,2]
[361187587,1747327901699,-300.0,0.00016438,2]
[361187588,1747327901708,-491.6,0.00016438,2]
[361187589,1747327901718,-1311.61,0.00016478,2]